[Event "Queens Festival Europe 2022"]
[Site "Tornelo"]
[Date "2022.06.19"]
[Round "7.2"]
[White "Gueci, Tea"]
[Black "Sikorova, Olga"]
[Result "1-0"]
[ECO "C07"]
[WhiteElo "2248"]
[BlackElo "2173"]
[Annotator "NA RC"]
[PlyCount "97"]
[EventDate "2022.06.19"]
[EventType "swiss"]
[EventCountry "NET"]
[SourceTitle "playchess.com"]
[Source "ChessBase"]
[SourceQuality "1"]
[TimeControl "180+2"]

1. e4 {[%emt 0:00:02]} e6 {[%emt 0:00:04]} 2. d4 {[%emt 0:00:02]} d5 {[%emt 0:00:02]} 3. Nd2 {[%emt 0:00:02]} c5 {[%emt 0:00:02]} 4. Ngf3 {[%emt 0:00:03]} cxd4 {[%emt 0:00:03]} 5. exd5 {[%emt 0:00:04]} Qxd5 {[%emt 0:00:02]} 6. Bc4 {[%emt 0:00:01]} Qd6 {[%emt 0:00:02]} 7. O-O {[%emt 0:00:01]} Nf6 {[%emt 0:00:02]} 8. Nb3 {[%emt 0:00:03]} Nc6 {[%emt 0:00:01]} 9. Nbxd4 {[%emt 0:00:02]} Nxd4 {[%emt 0:00:01]} 10. Nxd4 {[%emt 0:00:00]} a6 {[%emt 0:00:02]} 11. Bb3 {[%emt 0:00:02]} Bd7 {[%emt 0:00:05]} 12. c3 {[%emt 0:00:09]} Qc7 {[%emt 0:00:04]} 13. Re1 {[%emt 0:00:01]} Bd6 {[%emt 0:00:03]} 14. h3 {[%emt 0:00:27]} O-O-O {[%emt 0:00:08]} 15. Qf3 {[%emt 0:00:21]} h6 {[%emt 0:00:04]} 16. Be3 {[%emt 0:00:06]} Be5 {[%emt 0:00:06]} 17. Rad1 {[%emt 0:00:05]} g5 {[%emt 0:00:05]} 18. c4 {[%emt 0:00:21]} Rdg8 {[%emt 0:00:05]} 19. Rc1 {[%emt 0:00:20]} g4 {[%emt 0:00:02]} 20. hxg4 {[%emt 0:00:02]} Nxg4 {[%emt 0:00:05]} 21. Nb5 {[%emt 0:00:04]} Bh2+ {[%emt 0:00:24]} 22. Kf1 {[%emt 0:00:03]} Nxe3+ {[%emt 0:00:07]} 23. Qxe3 {[%emt 0:00:10]} Qb8 {[%emt 0:00:46]} 24. Red1 {[%emt 0:00:35]} b6 {[%emt 0:00:36]} 25. Nd4 {[%emt 0:00:13]} Qf4 {[%emt 0:00:07]} 26. Qc3 {[%emt 0:00:09]} Qg4 {[%emt 0:00:12]} 27. Qf3 {[%emt 0:00:09]} Qxf3 {[%emt 0:00:02]} 28. Nxf3 {[%emt 0:00:00]} Bc7 {[%emt 0:00:03]} 29. c5 {[%emt 0:00:01]} Bb5+ {[%emt 0:00:04]} 30. Bc4 {[%emt 0:00:03]} bxc5 {[%emt 0:00:01]} 31. Bxb5 {[%emt 0:00:02]} axb5 {[%emt 0:00:01]} 32. Rxc5 {[%emt 0:00:00]} f6 {[%emt 0:00:06]} 33. Rdc1 {[%emt 0:00:03]} Rh7 {[%emt 0:00:02]} 34. Nd4 {[%emt 0:00:01]} Rgg7 {[%emt 0:00:08]} 35. Nxe6 {[%emt 0:00:02]} Re7 {[%emt 0:00:02]} 36. Nxc7 {[%emt 0:00:07]} Rxc7 {[%emt 0:00:01]} 37. Rxc7+ {[%emt 0:00:00]} Rxc7 {[%emt 0:00:02]} 38. Rxc7+ {[%emt 0:00:00]} Kxc7 {[%emt 0:00:00]} 39. Ke2 {[%emt 0:00:01]} Kc6 {[%emt 0:00:01]} 40. Kf3 {[%emt 0:00:01]} Kc5 {[%emt 0:00:01]} 41. Kf4 {[%emt 0:00:01]} Kc4 {[%emt 0:00:01]} 42. Kf5 {[%emt 0:00:02]} Kd3 {[%emt 0:00:01]} 43. b3 {[%emt 0:00:03]} Kc3 {[%emt 0:00:01]} 44. a4 {[%emt 0:00:02]} b4 {[%emt 0:00:02]} 45. a5 {[%emt 0:00:01]} Kxb3 {[%emt 0:00:01]} 46. a6 {[%emt 0:00:01]} Kc2 {[%emt 0:00:00]} 47. a7 {[%emt 0:00:01]} b3 {[%emt 0:00:01]} 48. a8=Q {[%emt 0:00:02]} b2 {[%emt 0:00:01]} 49. Qb8 {[%emt 0:00:01]} 1-0

[Event "Queens Festival Europe 2022"]
[Site "Tornelo"]
[Date "2022.06.19"]
[Round "7.2"]
[White "Mammadova, Aysel"]
[Black "Shuqja, Klean"]
[Result "1-0"]
[ECO "C55"]
[WhiteElo "1893"]
[BlackElo "1839"]
[Annotator "NA RC"]
[PlyCount "97"]
[EventDate "2022.06.19"]
[EventType "swiss"]
[EventCountry "NET"]
[SourceTitle "playchess.com"]
[Source "ChessBase"]
[SourceQuality "1"]
[TimeControl "180+2"]

1. e4 {[%emt 0:00:02]} e5 {[%emt 0:00:05]} 2. Nf3 {[%emt 0:00:04]} Nc6 {[%emt 0:00:01]} 3. Bc4 {[%emt 0:00:02]} Be7 {[%emt 0:00:02]} 4. O-O {[%emt 0:00:02]} Nf6 {[%emt 0:00:02]} 5. c3 {[%emt 0:00:01]} O-O {[%emt 0:00:05]} 6. d4 {[%emt 0:00:06]} d6 {[%emt 0:00:31]} 7. d5 {[%emt 0:00:07]} Nb8 {[%emt 0:00:02]} 8. Qe2 {[%emt 0:00:01]} c6 {[%emt 0:00:07]} 9. Rd1 {[%emt 0:00:05]} a5 {[%emt 0:00:23]} 10. Bg5 {[%emt 0:00:05]} b5 {[%emt 0:00:12]} 11. Bb3 {[%emt 0:00:04]} c5 {[%emt 0:00:06]} 12. c4 {[%emt 0:00:04]} a4 {[%emt 0:00:13]} 13. Bc2 {[%emt 0:00:02]} Ba6 {[%emt 0:00:30]} 14. cxb5 {[%emt 0:00:04]} Bb7 {[%emt 0:00:02]} 15. Nc3 {[%emt 0:00:02]} a3 {[%emt 0:00:04]} 16. b3 {[%emt 0:00:02]} Nfd7 {[%emt 0:00:08]} 17. Bxe7 {[%emt 0:00:04]} Qxe7 {[%emt 0:00:02]} 18. Nd2 {[%emt 0:00:02]} Nb6 {[%emt 0:00:04]} 19. Nc4 {[%emt 0:00:02]} N8d7 {[%emt 0:00:05]} 20. Qe3 {[%emt 0:00:11]} Rfb8 {[%emt 0:00:15]} 21. Ne2 {[%emt 0:00:06]} Ra7 {[%emt 0:00:15]} 22. Ng3 {[%emt 0:00:07]} g6 {[%emt 0:00:02]} 23. Nf1 {[%emt 0:00:06]} f5 {[%emt 0:00:05]} 24. exf5 {[%emt 0:00:03]} Nxd5 {[%emt 0:00:02]} 25. Qg3 {[%emt 0:00:11]} Nf4 {[%emt 0:00:05]} 26. Rd2 {[%emt 0:00:14]} Bxg2 {[%emt 0:00:08]} 27. fxg6 {[%emt 0:00:04]} hxg6 {[%emt 0:00:02]} 28. Bxg6 {[%emt 0:00:06]} Qg7 {[%emt 0:00:02]} 29. Bf5 {[%emt 0:00:11]} d5 {[%emt 0:00:03]} 30. Qxg7+ {[%emt 0:00:05]} Kxg7 {[%emt 0:00:02]} 31. Bxd7 {[%emt 0:00:03]} Rxd7 {[%emt 0:00:04]} 32. Nxe5 {[%emt 0:00:08]} Rc7 {[%emt 0:00:09]} 33. Ne3 {[%emt 0:00:05]} Be4 {[%emt 0:00:04]} 34. f3 {[%emt 0:00:04]} Bg6 {[%emt 0:00:02]} 35. Nxg6 {[%emt 0:00:03]} Kxg6 {[%emt 0:00:03]} 36. Nxd5 {[%emt 0:00:04]} Nxd5 {[%emt 0:00:01]} 37. Rxd5 {[%emt 0:00:03]} Rxb5 {[%emt 0:00:01]} 38. Kf2 {[%emt 0:00:03]} Rb4 {[%emt 0:00:02]} 39. Rg1+ {[%emt 0:00:03]} Kf6 {[%emt 0:00:01]} 40. Rgg5 {[%emt 0:00:03]} c4 {[%emt 0:00:02]} 41. Rgf5+ {[%emt 0:00:03]} Ke6 {[%emt 0:00:02]} 42. Rde5+ {[%emt 0:00:02]} Kd6 {[%emt 0:00:01]} 43. bxc4 {[%emt 0:00:03]} Rb2+ {[%emt 0:00:06]} 44. Re2 {[%emt 0:00:02]} Rxc4 {[%emt 0:00:02]} 45. Rxb2 {[%emt 0:00:06]} axb2 {[%emt 0:00:01]} 46. Rb5 {[%emt 0:00:02]} Rc2+ {[%emt 0:00:03]} 47. Kg3 {[%emt 0:00:02]} Kc6 {[%emt 0:00:02]} 48. Rb3 {[%emt 0:00:03]} Kc5 {[%emt 0:00:04]} 49. h4 {[%emt 0:00:02]} 1-0

[Event "Queens Festival Europe 2022"]
[Site "Tornelo"]
[Date "2022.06.19"]
[Round "7.2"]
[White "Stadlinger, Lea"]
[Black "Lampard, Alice"]
[Result "1-0"]
[ECO "B35"]
[WhiteElo "1723"]
[BlackElo "1756"]
[Annotator "NA RC"]
[PlyCount "111"]
[EventDate "2022.06.19"]
[EventType "swiss"]
[EventCountry "NET"]
[SourceTitle "playchess.com"]
[Source "ChessBase"]
[SourceQuality "1"]
[TimeControl "180+2"]

1. e4 {[%emt 0:00:02]} c5 {[%emt 0:00:05]} 2. Nf3 {[%emt 0:00:06]} Nc6 {[%emt 0:00:01]} 3. d4 {[%emt 0:00:02]} cxd4 {[%emt 0:00:03]} 4. Nxd4 {[%emt 0:00:02]} g6 {[%emt 0:00:02]} 5. Nc3 {[%emt 0:00:04]} Bg7 {[%emt 0:00:02]} 6. Be3 {[%emt 0:00:02]} Nf6 {[%emt 0:00:01]} 7. Bc4 {[%emt 0:00:03]} O-O {[%emt 0:00:03]} 8. f3 {[%emt 0:00:04]} Qb6 {[%emt 0:00:03]} 9. Bb3 {[%emt 0:00:55]} Ng4 {[%emt 0:00:32]} 10. fxg4 {[%emt 0:00:20]} Bxd4 {[%emt 0:00:02]} 11. Bxd4 {[%emt 0:00:05]} Qxd4 {[%emt 0:00:03]} 12. Qxd4 {[%emt 0:00:06]} Nxd4 {[%emt 0:00:00]} 13. O-O-O {[%emt 0:00:08]} Nc6 {[%emt 0:00:11]} 14. Ba4 {[%emt 0:00:06]} a6 {[%emt 0:00:28]} 15. Nd5 {[%emt 0:00:13]} b5 {[%emt 0:00:06]} 16. Bb3 {[%emt 0:00:02]} Rb8 {[%emt 0:00:09]} 17. c4 {[%emt 0:00:14]} d6 {[%emt 0:00:13]} 18. cxb5 {[%emt 0:00:05]} axb5 {[%emt 0:00:12]} 19. Kb1 {[%emt 0:00:02]} Bxg4 {[%emt 0:00:04]} 20. Rc1 {[%emt 0:00:05]} Nd4 {[%emt 0:00:13]} 21. Nxe7+ {[%emt 0:00:04]} Kg7 {[%emt 0:00:01]} 22. Nc6 {[%emt 0:00:11]} Nxc6 {[%emt 0:00:09]} 23. Rxc6 {[%emt 0:00:06]} Rfd8 {[%emt 0:00:09]} 24. h3 {[%emt 0:00:02]} Be6 {[%emt 0:00:06]} 25. Bxe6 {[%emt 0:00:03]} fxe6 {[%emt 0:00:00]} 26. Rd1 {[%emt 0:00:03]} d5 {[%emt 0:00:07]} 27. Rxe6 {[%emt 0:00:07]} dxe4 {[%emt 0:00:07]} 28. Rxd8 {[%emt 0:00:02]} Rxd8 {[%emt 0:00:01]} 29. Rxe4 {[%emt 0:00:05]} Rd2 {[%emt 0:00:01]} 30. g3 {[%emt 0:00:09]} Rd3 {[%emt 0:00:02]} 31. Rg4 {[%emt 0:00:06]} Kf6 {[%emt 0:00:05]} 32. Kc2 {[%emt 0:00:02]} Rf3 {[%emt 0:00:02]} 33. Rf4+ {[%emt 0:00:03]} Rxf4 {[%emt 0:00:01]} 34. gxf4 {[%emt 0:00:02]} Kf5 {[%emt 0:00:00]} 35. b3 {[%emt 0:00:03]} Kxf4 {[%emt 0:00:01]} 36. a4 {[%emt 0:00:02]} h5 {[%emt 0:00:03]} 37. a5 {[%emt 0:00:02]} g5 {[%emt 0:00:01]} 38. a6 {[%emt 0:00:02]} g4 {[%emt 0:00:02]} 39. hxg4 {[%emt 0:00:02]} hxg4 {[%emt 0:00:02]} 40. a7 {[%emt 0:00:01]} g3 {[%emt 0:00:01]} 41. a8=Q {[%emt 0:00:03]} b4 {[%emt 0:00:01]} 42. Qg2 {[%emt 0:00:03]} Kg4 {[%emt 0:00:02]} 43. Kd3 {[%emt 0:00:01]} Kf4 {[%emt 0:00:01]} 44. Kc4 {[%emt 0:00:01]} Ke3 {[%emt 0:00:01]} 45. Kxb4 {[%emt 0:00:01]} Kd3 {[%emt 0:00:01]} 46. Qxg3+ {[%emt 0:00:01]} Kd4 {[%emt 0:00:01]} 47. Qg4+ {[%emt 0:00:02]} Kd5 {[%emt 0:00:01]} 48. Ka5 {[%emt 0:00:01]} Kc6 {[%emt 0:00:01]} 49. b4 {[%emt 0:00:01]} Kb7 {[%emt 0:00:01]} 50. b5 {[%emt 0:00:00]} Ka8 {[%emt 0:00:01]} 51. Qc8+ {[%emt 0:00:04]} Ka7 {[%emt 0:00:01]} 52. Qa6+ {[%emt 0:00:02]} Kb8 {[%emt 0:00:02]} 53. Kb4 {[%emt 0:00:03]} Kc7 {[%emt 0:00:01]} 54. b6+ {[%emt 0:00:01]} Kb8 {[%emt 0:00:01]} 55. Qa7+ {[%emt 0:00:01]} Kc8 {[%emt 0:00:01]} 56. Qc7# {[%emt 0:00:02]} 1-0

[Event "Queens Festival Europe 2022"]
[Site "Tornelo"]
[Date "2022.06.19"]
[Round "7.2"]
[White "Aydogan, Arya"]
[Black "Hariharan, Shambavi"]
[Result "1/2-1/2"]
[ECO "B19"]
[WhiteElo "1409"]
[BlackElo "1517"]
[Annotator "NA RC"]
[PlyCount "135"]
[EventDate "2022.06.19"]
[EventType "swiss"]
[EventCountry "NET"]
[SourceTitle "playchess.com"]
[Source "ChessBase"]
[SourceQuality "1"]
[TimeControl "180+2"]

1. e4 {[%emt 0:00:02]} c6 {[%emt 0:00:04]} 2. d4 {[%emt 0:00:02]} d5 {[%emt 0:00:01]} 3. Nc3 {[%emt 0:00:01]} dxe4 {[%emt 0:00:01]} 4. Nxe4 {[%emt 0:00:01]} Bf5 {[%emt 0:00:02]} 5. Ng3 {[%emt 0:00:02]} Bg6 {[%emt 0:00:01]} 6. h4 {[%emt 0:00:01]} h6 {[%emt 0:00:02]} 7. Nf3 {[%emt 0:00:01]} Nd7 {[%emt 0:00:05]} 8. h5 {[%emt 0:00:02]} Bh7 {[%emt 0:00:01]} 9. Bd3 {[%emt 0:00:01]} Bxd3 {[%emt 0:00:03]} 10. Qxd3 {[%emt 0:00:01]} e6 {[%emt 0:00:01]} 11. Bd2 {[%emt 0:00:02]} Bd6 {[%emt 0:00:02]} 12. O-O-O {[%emt 0:00:11]} Ngf6 {[%emt 0:00:02]} 13. Ne4 {[%emt 0:00:02]} Nxe4 {[%emt 0:00:03]} 14. Qxe4 {[%emt 0:00:02]} Nf6 {[%emt 0:00:01]} 15. Qe2 {[%emt 0:00:01]} Qc7 {[%emt 0:00:02]} 16. Kb1 {[%emt 0:00:03]} O-O-O {[%emt 0:00:02]} 17. Ne5 {[%emt 0:00:04]} Bxe5 {[%emt 0:00:10]} 18. dxe5 {[%emt 0:00:02]} Nd5 {[%emt 0:00:01]} 19. Rh4 {[%emt 0:00:15]} Rhe8 {[%emt 0:00:14]} 20. Rg4 {[%emt 0:00:03]} Rg8 {[%emt 0:00:05]} 21. Ka1 {[%emt 0:00:19]} Qe7 {[%emt 0:00:21]} 22. Bc1 {[%emt 0:00:09]} Qc7 {[%emt 0:00:11]} 23. a3 {[%emt 0:00:16]} Qb6 {[%emt 0:00:19]} 24. c4 {[%emt 0:00:06]} Ne7 {[%emt 0:00:08]} 25. Rxd8+ {[%emt 0:00:06]} Qxd8 {[%emt 0:00:02]} 26. Qd2 {[%emt 0:00:05]} Qxd2 {[%emt 0:00:09]} 27. Bxd2 {[%emt 0:00:01]} Nf5 {[%emt 0:00:02]} 28. Kb1 {[%emt 0:00:06]} Rd8 {[%emt 0:00:02]} 29. Kc1 {[%emt 0:00:01]} Kc7 {[%emt 0:00:03]} 30. Rf4 {[%emt 0:00:19]} Rd7 {[%emt 0:00:11]} 31. Rf3 {[%emt 0:00:05]} Nd4 {[%emt 0:00:03]} 32. Rd3 {[%emt 0:00:09]} Ne2+ {[%emt 0:00:15]} 33. Kc2 {[%emt 0:00:01]} Nd4+ {[%emt 0:00:08]} 34. Kd1 {[%emt 0:00:06]} c5 {[%emt 0:00:10]} 35. Bc3 {[%emt 0:00:06]} Kc6 {[%emt 0:00:06]} 36. b4 {[%emt 0:00:22]} Nf5 {[%emt 0:00:21]} 37. b5+ {[%emt 0:00:15]} Kc7 {[%emt 0:00:04]} 38. Rxd7+ {[%emt 0:00:02]} Kxd7 {[%emt 0:00:01]} 39. Ke2 {[%emt 0:00:09]} b6 {[%emt 0:00:01]} 40. g4 {[%emt 0:00:03]} Ne7 {[%emt 0:00:10]} 41. f4 {[%emt 0:00:03]} Ng8 {[%emt 0:00:10]} 42. Kf3 {[%emt 0:00:02]} Ke7 {[%emt 0:00:01]} 43. Ke4 {[%emt 0:00:04]} f6 {[%emt 0:00:05]} 44. a4 {[%emt 0:00:03]} fxe5 {[%emt 0:00:11]} 45. fxe5 {[%emt 0:00:03]} Kd7 {[%emt 0:00:05]} 46. Bd2 {[%emt 0:00:03]} Ne7 {[%emt 0:00:02]} 47. Be3 {[%emt 0:00:06]} Ke8 {[%emt 0:00:04]} 48. Bd2 {[%emt 0:00:07]} Kd7 {[%emt 0:00:02]} 49. a5 {[%emt 0:00:01]} Kc7 {[%emt 0:00:02]} 50. axb6+ {[%emt 0:00:01]} axb6 {[%emt 0:00:01]} 51. Be3 {[%emt 0:00:04]} Kd7 {[%emt 0:00:02]} 52. Bf2 {[%emt 0:00:01]} Ke8 {[%emt 0:00:02]} 53. Bh4 {[%emt 0:00:02]} Nc8 {[%emt 0:00:03]} 54. g5 {[%emt 0:00:03]} hxg5 {[%emt 0:00:03]} 55. Bxg5 {[%emt 0:00:01]} Kf7 {[%emt 0:00:01]} 56. Bd8 {[%emt 0:00:04]} Ke8 {[%emt 0:00:03]} 57. Bh4 {[%emt 0:00:03]} Kf7 {[%emt 0:00:01]} 58. Kf4 {[%emt 0:00:02]} Na7 {[%emt 0:00:04]} 59. Bd8 {[%emt 0:00:03]} Nc8 {[%emt 0:00:01]} 60. Bh4 {[%emt 0:00:06]} Na7 {[%emt 0:00:04]} 61. Bf2 {[%emt 0:00:01]} Nc8 {[%emt 0:00:02]} 62. Bg1 {[%emt 0:00:02]} Ke7 {[%emt 0:00:02]} 63. Bf2 {[%emt 0:00:02]} Kf7 {[%emt 0:00:02]} 64. Kg5 {[%emt 0:00:02]} Ne7 {[%emt 0:00:02]} 65. Bg1 {[%emt 0:00:06]} Nf5 {[%emt 0:00:02]} 66. Kf4 {[%emt 0:00:02]} Ne7 {[%emt 0:00:03]} 67. Bf2 {[%emt 0:00:02]} Nf5 {[%emt 0:00:02]} 68. Bg1 {[%emt 0:00:05]} 1/2-1/2

[Event "Queens Festival Europe 2022"]
[Site "Tornelo"]
[Date "2022.06.19"]
[Round "7.3"]
[White "Machlik, Monika"]
[Black "Ismayil, Malak"]
[Result "0-1"]
[ECO "E33"]
[WhiteElo "2134"]
[BlackElo "2001"]
[Annotator "NA RC"]
[PlyCount "122"]
[EventDate "2022.06.19"]
[EventType "swiss"]
[EventCountry "NET"]
[SourceTitle "playchess.com"]
[Source "ChessBase"]
[SourceQuality "1"]
[TimeControl "180+2"]

1. d4 {[%emt 0:00:02]} Nf6 {[%emt 0:00:06]} 2. c4 {[%emt 0:00:03]} e6 {[%emt 0:00:02]} 3. Nc3 {[%emt 0:00:03]} Bb4 {[%emt 0:00:03]} 4. Qc2 {[%emt 0:00:06]} O-O {[%emt 0:00:03]} 5. a3 {[%emt 0:00:01]} Bxc3+ {[%emt 0:00:02]} 6. Qxc3 {[%emt 0:00:01]} d6 {[%emt 0:00:04]} 7. Nf3 {[%emt 0:00:11]} Nbd7 {[%emt 0:00:09]} 8. g3 {[%emt 0:00:03]} Qe7 {[%emt 0:00:02]} 9. Bg2 {[%emt 0:00:02]} e5 {[%emt 0:00:02]} 10. dxe5 {[%emt 0:00:08]} Nxe5 {[%emt 0:00:03]} 11. O-O {[%emt 0:00:03]} h6 {[%emt 0:00:09]} 12. Nd4 {[%emt 0:00:07]} Ng6 {[%emt 0:00:06]} 13. b4 {[%emt 0:00:10]} c5 {[%emt 0:00:16]} 14. Nc2 {[%emt 0:00:11]} Qxe2 {[%emt 0:00:13]} 15. Re1 {[%emt 0:00:13]} Qh5 {[%emt 0:00:03]} 16. Bb2 {[%emt 0:00:03]} Bh3 {[%emt 0:00:31]} 17. Ne3 {[%emt 0:00:05]} Bxg2 {[%emt 0:00:04]} 18. Kxg2 {[%emt 0:00:02]} Ne5 {[%emt 0:00:03]} 19. bxc5 {[%emt 0:00:13]} Ne4 {[%emt 0:00:18]} 20. Qc2 {[%emt 0:00:11]} Qf3+ {[%emt 0:00:09]} 21. Kg1 {[%emt 0:00:03]} Nxc5 {[%emt 0:00:16]} 22. Nd5 {[%emt 0:00:26]} Qb3 {[%emt 0:00:05]} 23. Qxb3 {[%emt 0:00:16]} Nxb3 {[%emt 0:00:02]} 24. Bxe5 {[%emt 0:00:02]} dxe5 {[%emt 0:00:28]} 25. Rab1 {[%emt 0:00:03]} Nd2 {[%emt 0:00:01]} 26. Rxb7 {[%emt 0:00:11]} Nf3+ {[%emt 0:00:02]} 27. Kf1 {[%emt 0:00:03]} Nxe1 {[%emt 0:00:02]} 28. Kxe1 {[%emt 0:00:01]} Kh7 {[%emt 0:00:04]} 29. Re7 {[%emt 0:00:04]} f6 {[%emt 0:00:03]} 30. Rd7 {[%emt 0:00:07]} Rac8 {[%emt 0:00:04]} 31. Rxa7 {[%emt 0:00:06]} Rxc4 {[%emt 0:00:01]} 32. Ke2 {[%emt 0:00:02]} Rd4 {[%emt 0:00:06]} 33. Ne3 {[%emt 0:00:05]} Kg6 {[%emt 0:00:05]} 34. h4 {[%emt 0:00:04]} h5 {[%emt 0:00:02]} 35. a4 {[%emt 0:00:06]} Rf7 {[%emt 0:00:02]} 36. Ra8 {[%emt 0:00:04]} Rb7 {[%emt 0:00:03]} 37. a5 {[%emt 0:00:03]} Rb2+ {[%emt 0:00:02]} 38. Kf3 {[%emt 0:00:02]} Rdd2 {[%emt 0:00:01]} 39. Nc4 {[%emt 0:00:06]} Rxf2+ {[%emt 0:00:02]} 40. Ke4 {[%emt 0:00:02]} Rb4 {[%emt 0:00:03]} 41. Kd5 {[%emt 0:00:04]} Rf3 {[%emt 0:00:02]} 42. Nd6 {[%emt 0:00:05]} Rd4+ {[%emt 0:00:04]} 43. Ke6 {[%emt 0:00:01]} Rc3 {[%emt 0:00:04]} 44. Ne8 {[%emt 0:00:13]} Rc6+ {[%emt 0:00:02]} 45. Ke7 {[%emt 0:00:01]} e4 {[%emt 0:00:03]} 46. a6 {[%emt 0:00:01]} e3 {[%emt 0:00:02]} 47. a7 {[%emt 0:00:02]} Re4+ {[%emt 0:00:04]} 48. Kd7 {[%emt 0:00:02]} Ra6 {[%emt 0:00:02]} 49. Nc7 {[%emt 0:00:03]} Ra2 {[%emt 0:00:03]} 50. Ne6 {[%emt 0:00:04]} Rxe6 {[%emt 0:00:06]} 51. Kxe6 {[%emt 0:00:01]} e2 {[%emt 0:00:01]} 52. Kd6 {[%emt 0:00:05]} e1=Q {[%emt 0:00:02]} 53. Kc7 {[%emt 0:00:01]} Qe5+ {[%emt 0:00:02]} 54. Kc6 {[%emt 0:00:03]} Qe4+ {[%emt 0:00:02]} 55. Kc7 {[%emt 0:00:01]} Qxa8 {[%emt 0:00:01]} 56. Kd6 {[%emt 0:00:01]} Qxa7 {[%emt 0:00:02]} 57. Kc6 {[%emt 0:00:01]} Rc2+ {[%emt 0:00:02]} 58. Kd5 {[%emt 0:00:03]} Qd7+ {[%emt 0:00:02]} 59. Ke4 {[%emt 0:00:01]} Re2+ {[%emt 0:00:02]} 60. Kf3 {[%emt 0:00:01]} Qd3+ {[%emt 0:00:01]} 61. Kf4 {[%emt 0:00:02]} Re4# {[%emt 0:00:02]} 0-1

[Event "Queens Festival Europe 2022"]
[Site "Tornelo"]
[Date "2022.06.19"]
[Round "7.3"]
[White "Mdivani, Maka"]
[Black "Gjergji, Rozana"]
[Result "1-0"]
[ECO "D15"]
[WhiteElo "1901"]
[BlackElo "1920"]
[Annotator "NA RC"]
[PlyCount "89"]
[EventDate "2022.06.19"]
[EventType "swiss"]
[EventCountry "NET"]
[SourceTitle "playchess.com"]
[Source "ChessBase"]
[SourceQuality "1"]
[TimeControl "180+2"]

1. d4 {[%emt 0:00:18]} d5 {[%emt 0:00:08]} 2. c4 {[%emt 0:00:03]} c6 {[%emt 0:00:04]} 3. Nf3 {[%emt 0:00:04]} Nf6 {[%emt 0:00:01]} 4. Nc3 {[%emt 0:00:02]} Bf5 {[%emt 0:00:02]} 5. Bf4 {[%emt 0:00:06]} Nbd7 {[%emt 0:00:04]} 6. h3 {[%emt 0:00:03]} h6 {[%emt 0:00:04]} 7. e3 {[%emt 0:00:03]} Nb6 {[%emt 0:00:05]} 8. b3 {[%emt 0:00:06]} e6 {[%emt 0:00:04]} 9. Bd3 {[%emt 0:00:04]} Bb4 {[%emt 0:00:06]} 10. Rc1 {[%emt 0:00:15]} Ne4 {[%emt 0:00:11]} 11. Bxe4 {[%emt 0:00:06]} Bxe4 {[%emt 0:00:02]} 12. O-O {[%emt 0:00:04]} Bxf3 {[%emt 0:00:07]} 13. Qxf3 {[%emt 0:00:03]} dxc4 {[%emt 0:00:03]} 14. bxc4 {[%emt 0:00:12]} Nxc4 {[%emt 0:00:02]} 15. Ne4 {[%emt 0:00:02]} Nd6 {[%emt 0:00:02]} 16. Nc5 {[%emt 0:00:09]} Bxc5 {[%emt 0:00:34]} 17. dxc5 {[%emt 0:00:03]} Nf5 {[%emt 0:00:02]} 18. Rfd1 {[%emt 0:00:13]} Qf6 {[%emt 0:00:05]} 19. Bd6 {[%emt 0:00:20]} Nxd6 {[%emt 0:00:10]} 20. Qxf6 {[%emt 0:00:02]} gxf6 {[%emt 0:00:03]} 21. Rxd6 {[%emt 0:00:03]} Ke7 {[%emt 0:00:08]} 22. Rb1 {[%emt 0:00:08]} Rab8 {[%emt 0:00:06]} 23. Rd4 {[%emt 0:00:05]} Rhd8 {[%emt 0:00:03]} 24. Rdb4 {[%emt 0:00:03]} Rd7 {[%emt 0:00:04]} 25. a4 {[%emt 0:00:02]} a5 {[%emt 0:00:12]} 26. Rb6 {[%emt 0:00:03]} Kd8 {[%emt 0:00:12]} 27. Rxc6 {[%emt 0:00:08]} Rc8 {[%emt 0:00:10]} 28. Rxc8+ {[%emt 0:00:13]} Kxc8 {[%emt 0:00:03]} 29. Rb5 {[%emt 0:00:02]} Kc7 {[%emt 0:00:11]} 30. Rxa5 {[%emt 0:00:06]} Kc6 {[%emt 0:00:04]} 31. Kf1 {[%emt 0:00:09]} Rd1+ {[%emt 0:00:02]} 32. Ke2 {[%emt 0:00:02]} Rc1 {[%emt 0:00:03]} 33. Ra8 {[%emt 0:00:05]} Rxc5 {[%emt 0:00:05]} 34. Rc8+ {[%emt 0:00:14]} Kb6 {[%emt 0:00:06]} 35. Rf8 {[%emt 0:00:06]} Rc7 {[%emt 0:00:06]} 36. Ra8 {[%emt 0:00:04]} Rc4 {[%emt 0:00:06]} 37. Kd3 {[%emt 0:00:05]} Rc7 {[%emt 0:00:04]} 38. Rh8 {[%emt 0:00:05]} Ka5 {[%emt 0:00:18]} 39. Rxh6 {[%emt 0:00:02]} f5 {[%emt 0:00:09]} 40. Rh4 {[%emt 0:00:03]} Rc1 {[%emt 0:00:06]} 41. g4 {[%emt 0:00:07]} Rd1+ {[%emt 0:00:03]} 42. Ke2 {[%emt 0:00:03]} Ra1 {[%emt 0:00:03]} 43. gxf5 {[%emt 0:00:02]} exf5 {[%emt 0:00:03]} 44. Rf4 {[%emt 0:00:01]} Rxa4 {[%emt 0:00:02]} 45. Rxf5+ {[%emt 0:00:02]} 1-0

[Event "Queens Festival Europe 2022"]
[Site "Tornelo"]
[Date "2022.06.19"]
[Round "7.3"]
[White "Khalilova, Khadija"]
[Black "Rybackova, Lucie"]
[Result "0-1"]
[ECO "B41"]
[WhiteElo "1777"]
[BlackElo "1696"]
[Annotator "NA RC"]
[PlyCount "80"]
[EventDate "2022.06.19"]
[EventType "swiss"]
[EventCountry "NET"]
[SourceTitle "playchess.com"]
[Source "ChessBase"]
[SourceQuality "1"]
[TimeControl "180+2"]

1. e4 {[%emt 0:00:02]} c5 {[%emt 0:00:07]} 2. Nf3 {[%emt 0:00:04]} e6 {[%emt 0:00:01]} 3. d4 {[%emt 0:00:02]} cxd4 {[%emt 0:00:02]} 4. Nxd4 {[%emt 0:00:02]} a6 {[%emt 0:00:01]} 5. c4 {[%emt 0:00:02]} Qc7 {[%emt 0:00:08]} 6. Nc3 {[%emt 0:00:03]} Nf6 {[%emt 0:00:03]} 7. Bd3 {[%emt 0:00:05]} Nc6 {[%emt 0:00:05]} 8. Nf3 {[%emt 0:00:07]} Be7 {[%emt 0:00:08]} 9. O-O {[%emt 0:00:03]} O-O {[%emt 0:00:02]} 10. h3 {[%emt 0:00:03]} d6 {[%emt 0:00:19]} 11. Qe2 {[%emt 0:00:03]} Rb8 {[%emt 0:00:02]} 12. a3 {[%emt 0:00:03]} Bd7 {[%emt 0:00:03]} 13. Be3 {[%emt 0:00:05]} Rfd8 {[%emt 0:00:25]} 14. Rac1 {[%emt 0:00:03]} Ne5 {[%emt 0:00:07]} 15. Nxe5 {[%emt 0:00:10]} dxe5 {[%emt 0:00:02]} 16. b4 {[%emt 0:00:05]} a5 {[%emt 0:00:10]} 17. Rb1 {[%emt 0:00:07]} axb4 {[%emt 0:00:04]} 18. axb4 {[%emt 0:00:02]} Ra8 {[%emt 0:00:11]} 19. c5 {[%emt 0:00:20]} Ra3 {[%emt 0:00:07]} 20. Rfc1 {[%emt 0:00:03]} Rda8 {[%emt 0:00:07]} 21. Bb5 {[%emt 0:00:05]} h6 {[%emt 0:00:34]} 22. Bd2 {[%emt 0:00:04]} Qc8 {[%emt 0:00:05]} 23. Rd1 {[%emt 0:00:04]} Bxb5 {[%emt 0:00:08]} 24. Nxb5 {[%emt 0:00:05]} Ra2 {[%emt 0:00:02]} 25. Qf3 {[%emt 0:00:20]} Qc6 {[%emt 0:00:03]} 26. Nc3 {[%emt 0:00:06]} b6 {[%emt 0:00:03]} 27. Nxa2 {[%emt 0:00:11]} Rxa2 {[%emt 0:00:03]} 28. cxb6 {[%emt 0:00:03]} Qxb6 {[%emt 0:00:02]} 29. Be3 {[%emt 0:00:04]} Qb5 {[%emt 0:00:04]} 30. Rdc1 {[%emt 0:00:08]} Ra3 {[%emt 0:00:05]} 31. Qd1 {[%emt 0:00:08]} Nxe4 {[%emt 0:00:08]} 32. Rc8+ {[%emt 0:00:03]} Kh7 {[%emt 0:00:03]} 33. Qc2 {[%emt 0:00:02]} f5 {[%emt 0:00:03]} 34. Bc5 {[%emt 0:00:09]} Bxc5 {[%emt 0:00:04]} 35. bxc5 {[%emt 0:00:02]} Qa5 {[%emt 0:00:04]} 36. Rc6 {[%emt 0:00:09]} Ra2 {[%emt 0:00:03]} 37. Qd3 {[%emt 0:00:16]} Rxf2 {[%emt 0:00:04]} 38. Rxe6 {[%emt 0:00:05]} Qa2 {[%emt 0:00:02]} 39. Rxe5 {[%emt 0:00:26]} Rxg2+ {[%emt 0:00:04]} 40. Kf1 {[%emt 0:00:03]} Qf2# {[%emt 0:00:03]} 0-1